bitfinex-derivatives/quotes_BNBF0:USTF0_20250126
["timestamp","ask_amount","ask_price","bid_price","bid_amount"]
[1737912508304,1.3741798,684.51,683.34,1.52640505]
[1737912516706,1.3741798,684.51,683.31,0.29269292]
[1737912523615,1.3741798,684.51,683.32,0.26875902]
[1737912524415,1.3741798,684.51,683.31,0.29269292]
[1737912524616,1.3741798,684.51,683.32,0.26876202]
[1737912526909,1.3741798,684.51,683.31,0.29269292]
[1737912527110,1.3741798,684.51,683.32,0.26876202]
[1737912527417,1.3741798,684.51,683.31,0.29269292]
[1737912527815,1.3741798,684.51,683.3,1.09328875]
[1737912528317,1.3741798,684.51,683.36,1.09328875]
[1737912532219,1.3741798,684.51,683.06,1.09328875]
[1737912532412,1.3741798,684.51,683.07,0.26881847]
[1737912532614,1.3741798,684.51,683.06,1.09328875]
[1737912533816,1.3741798,684.51,683.07,0.26882113]
[1737912534715,1.3741798,684.51,683.06,1.09328875]
[1737912536018,1.3741798,684.51,683.07,0.26882313]
[1737912536410,1.3741798,684.51,682.98,0.26882313]
[1737912536617,1.3741798,684.51,682.99,0.26882313]
[1737912536817,1.3741798,684.51,683.0,0.26882313]
[1737912537018,1.3741798,684.51,682.98,0.26882313]
[1737912537217,1.3741798,684.51,682.99,0.26882313]
[1737912537410,1.3741798,684.51,682.98,0.26882313]
[1737912539019,1.3741798,684.51,682.97,1.09328875]
[1737912539214,1.3741798,684.51,682.98,0.26882255]
[1737912540812,1.3741798,684.51,683.01,1.09328875]
[1737912541016,1.3741798,684.51,683.02,0.26882255]
[1737912543619,1.09434169,684.5,683.11,1.09328875]
[1737912543819,0.29219261,684.48,683.12,0.26881967]
[1737912544619,1.52681803,684.47,683.12,0.26881967]
[1737912544819,0.29220115,684.46,683.12,0.26881967]
[1737912545019,1.41420115,684.46,683.12,0.26881967]
[1737912545418,3.66731282,684.46,683.12,0.26881967]
[1737912546421,3.66731282,684.46,683.12,1.36210842]
[1737912546619,3.66731282,684.46,683.13,0.26881967]
[1737912549815,3.66731282,684.46,683.16,1.09328875]
[1737912550018,3.66731282,684.46,683.17,0.26881967]
[1737912551121,1.41420115,684.46,683.17,0.26881967]
[1737912552322,1.09434169,684.44,683.17,0.26881967]
[1737912552522,0.29221395,684.43,683.17,0.26881967]
[1737912553223,0.29221395,684.43,683.16,1.09328875]
[1737912553423,0.29221395,684.43,683.17,0.26881873]
[1737912554915,0.29221395,684.43,683.16,1.09328875]
[1737912555118,0.29221395,684.43,683.17,0.26881876]
[1737912558529,0.29221395,684.43,683.11,1.09328875]
[1737912558727,0.29221395,684.43,683.12,0.2688187]
[1737912560025,0.29221395,684.43,683.14,1.09328875]
[1737912560225,1.34921395,684.43,683.15,0.2688187]
[1737912562130,1.34921395,684.43,683.15,0.26306993]
[1737912562330,1.34921395,684.43,683.14,1.09328875]
[1737912563126,1.34921395,684.43,683.15,0.26881346]
[1737912563831,1.34921395,684.43,683.18,1.09328875]
[1737912564130,1.34921395,684.43,683.19,0.26881438]
[1737912566435,1.09434169,684.4,683.26,1.09328875]
[1737912566631,0.29223103,684.39,683.26,1.09328875]
[1737912566936,0.29223103,684.39,683.27,0.26881674]
[1737912567527,0.29223103,684.39,683.26,1.09328875]
[1737912567732,0.29223103,684.39,683.27,0.26881698]
[1737912569835,0.29223103,684.39,683.32,1.09328875]
[1737912569836,1.09434169,684.3,683.32,1.09328875]
[1737912570037,0.29227374,684.29,683.32,1.09328875]
[1737912573340,0.29227374,684.29,682.79,0.71601222]
[1737912573341,1.09434169,684.28,683.34,1.09328875]
[1737912579942,1.09434169,684.27,683.34,1.09328875]
[1737912584048,0.29227374,684.29,683.22,1.09328875]
[1737912587258,0.29227374,684.29,683.2,1.09328875]
[1737912591555,1.46627374,684.29,683.2,1.09328875]
[1737912592957,1.46627374,684.29,683.22,1.09328875]
[1737912596059,1.46627374,684.29,683.15,1.09328875]
[1737912599257,1.46627374,684.29,682.91,1.09328875]
[1737912599258,1.46627374,684.29,683.16,0.26883034]
[1737912599559,1.46627374,684.29,683.13,1.09328875]
[1737912599760,1.46627374,684.29,683.14,0.26883229]
[1737912600060,1.46627374,684.29,683.15,0.26883229]
[1737912600258,1.46627374,684.29,683.14,0.26883229]
[1737912600459,1.46627374,684.29,683.15,0.26883498]
[1737912600659,1.46627374,684.29,683.14,0.26883498]
[1737912600859,1.46627374,684.29,683.15,0.26883498]
[1737912601056,1.46627374,684.29,683.13,1.09328875]
[1737912601257,1.46627374,684.29,683.14,0.26883391]
[1737912601961,1.46627374,684.29,683.15,1.09328875]
[1737912603656,1.46627374,684.29,683.16,0.26883944]
[1737912604763,1.46627374,684.29,683.15,1.09328875]
[1737912604962,1.46627374,684.29,683.16,0.26884158]
[1737912605262,1.46627374,684.29,683.17,0.26884158]
[1737912605462,1.46627374,684.29,683.18,0.26884158]
[1737912605663,1.46627374,684.29,683.19,0.26884158]
[1737912605858,1.46627374,684.29,683.14,0.26884158]
[1737912607667,1.46627374,684.29,683.16,1.09328875]
[1737912607863,1.46627374,684.29,683.17,0.26884158]
[1737912611668,1.46627374,684.29,683.18,1.09328875]
[1737912614772,1.46627374,684.29,683.19,1.09328875]
[1737912615973,1.46627374,684.29,683.2,0.2688414]
[1737912617575,1.46627374,684.29,683.18,1.09328875]
[1737912620877,1.46627374,684.29,683.15,1.09328875]
[1737912623577,1.46627374,684.29,683.13,1.09328875]
[1737912624178,1.46627374,684.29,683.14,0.26883871]
[1737912624382,1.46627374,684.29,683.13,1.09328875]
[1737912624779,1.46627374,684.29,683.14,0.26883828]
[1737912626181,1.46627374,684.29,683.13,1.09328875]
[1737912626383,1.46627374,684.29,683.14,0.26881462]
[1737912627086,1.46627374,684.29,683.19,1.09328875]
[1737912627286,1.46627374,684.29,683.2,0.26881462]
[1737912630587,1.46627374,684.29,683.23,1.09328875]
[1737912631383,1.46627374,684.29,683.24,0.26879165]
[1737912634382,1.46627374,684.29,683.26,1.09328875]
[1737912634685,1.46627374,684.29,683.27,0.26879165]
[1737912641488,1.46627374,684.29,683.26,1.09328875]
[1737912641489,1.46627374,684.29,683.28,0.26879465]
[1737912641791,1.46627374,684.29,683.29,0.26879465]
[1737912641985,1.46627374,684.29,683.3,0.26879465]
[1737912642291,1.46627374,684.29,683.31,0.26879465]
[1737912642490,1.46627374,684.29,683.32,0.26879465]
[1737912642684,1.46627374,684.29,683.26,1.09328875]
[1737912642685,1.46627374,684.29,683.27,0.26879465]
[1737912642888,1.46627374,684.29,683.28,0.26879465]
[1737912643087,1.46627374,684.29,683.29,0.26879465]
[1737912643288,1.46627374,684.29,683.26,1.09328875]
[1737912643289,1.46627374,684.29,683.3,0.26879465]
[1737912643488,1.46627374,684.29,683.27,0.26879465]
[1737912643688,1.46627374,684.29,683.28,0.26879465]
[1737912643888,1.46627374,684.29,683.27,0.26879465]
[1737912644092,1.46627374,684.29,683.28,0.26879465]
[1737912644289,1.46627374,684.29,683.29,0.26879465]
[1737912644485,1.46627374,684.29,683.27,0.26879465]
[1737912644690,1.46627374,684.29,683.28,0.26879465]
[1737912644890,1.46627374,684.29,683.27,0.26879465]
[1737912645090,1.46627374,684.29,683.28,0.26879465]
[1737912645393,1.46627374,684.29,683.29,0.26879465]
[1737912645592,1.46627374,684.29,683.27,0.26879465]
[1737912645791,1.46627374,684.29,683.28,0.26879881]
[1737912645992,1.46627374,684.29,683.29,0.26879881]
[1737912646292,1.46627374,684.29,683.3,0.26879881]
[1737912646491,1.46627374,684.29,683.26,1.09328875]
[1737912646492,1.46627374,684.29,683.27,0.26879881]
[1737912646691,1.46627374,684.29,683.28,0.26879881]
[1737912646892,1.46627374,684.29,683.29,0.26879881]
[1737912647093,1.46627374,684.29,683.27,0.26879881]
[1737912647296,1.46627374,684.29,683.28,0.26879881]
[1737912647592,1.46627374,684.29,683.26,1.09328875]
[1737912647793,1.46627374,684.29,683.27,0.26880015]
[1737912648295,1.46627374,684.29,683.28,0.26879995]
[1737912648793,1.46627374,684.29,683.29,0.26879995]
[1737912648993,1.46627374,684.29,683.27,0.26879995]
[1737912649296,1.46627374,684.29,683.28,0.26879995]
[1737912649694,1.46627374,684.29,683.26,1.09328875]
[1737912649995,1.46627374,684.29,683.27,0.26879216]
[1737912650697,1.46627374,684.29,683.28,1.09328875]
[1737912650894,1.46627374,684.29,683.29,0.26879216]
[1737912653199,1.46627374,684.29,683.28,1.09328875]
[1737912653396,1.46627374,684.29,683.29,0.2687915]
[1737912653898,1.46627374,684.29,683.26,1.09328875]
[1737912654200,1.46627374,684.29,683.27,0.26879129]
[1737912654999,1.46627374,684.29,683.28,0.26879265]
[1737912655200,1.46627374,684.29,683.27,0.26879265]
[1737912655401,1.46627374,684.29,683.26,1.09328875]
[1737912655600,1.46627374,684.29,683.27,0.26879265]
[1737912656594,1.46627374,684.29,683.26,1.09328875]
[1737912656795,1.46627374,684.29,683.27,0.26879094]
[1737912657198,1.46627374,684.29,683.23,0.26879094]
[1737912657395,1.46627374,684.29,683.24,0.26879094]
[1737912657601,1.46627374,684.29,683.23,0.26879094]
[1737912657803,1.46627374,684.29,683.24,0.26879094]
[1737912658003,1.46627374,684.29,683.25,0.26879094]
[1737912658199,1.46627374,684.29,683.26,0.26879094]
[1737912658401,1.46627374,684.29,683.27,0.26879094]
[1737912658601,1.46627374,684.29,683.23,0.26879094]
[1737912659601,1.46627374,684.29,683.26,1.09328875]
[1737912659803,1.46627374,684.29,683.27,0.26879094]
[1737912660401,1.46627374,684.29,683.28,0.26879454]
[1737912660704,1.46627374,684.29,683.29,0.26879454]
[1737912660899,1.46627374,684.29,683.26,1.09328875]
[1737912661099,1.46627374,684.29,683.27,0.26879503]
[1737912662503,1.46627374,684.29,683.31,1.09328875]
[1737912663809,1.46627374,684.29,683.32,0.26879359]
[1737912666507,1.46627374,684.29,683.31,1.09328875]
[1737912668011,1.46627374,684.29,683.32,0.26879812]
[1737912668203,1.46627374,684.29,683.35,1.09328875]
[1737912671513,1.46627374,684.29,683.29,1.09328875]
[1737912675118,1.46627374,684.29,683.33,1.09328875]
[1737912678122,1.46627374,684.29,683.28,1.09328875]
[1737912681221,1.46627374,684.29,683.3,1.09328875]
[1737912687530,1.46627374,684.29,683.33,1.09328875]
[1737912690931,1.46627374,684.29,683.32,1.09328875]
[1737912693533,1.46627374,684.29,683.29,1.09328875]
[1737912695934,1.46627374,684.29,683.31,1.09328875]
[1737912701742,1.46627374,684.29,683.28,1.09328875]
[1737912703646,1.46627374,684.29,683.29,0.26880237]
[1737912703846,1.46627374,684.29,683.28,1.09328875]
[1737912704644,1.46627374,684.29,683.3,1.09328875]
[1737912707943,1.46627374,684.29,683.21,1.09328875]
[1737912713052,1.46627374,684.29,683.1,1.09328875]
[1737912715747,0.29227374,684.29,683.1,1.09328875]
[1737912716353,0.29227374,684.29,683.04,1.09328875]
[1737912716554,0.29227374,684.29,683.05,0.26884721]
[1737912719152,0.29227374,684.29,683.04,1.09328875]
[1737912719355,0.29227374,684.29,683.05,0.26884215]
[1737912720554,1.20727374,684.29,683.05,0.26884215]
[1737912720754,1.20727374,684.29,683.04,1.09328875]
[1737912720951,1.20727374,684.29,683.05,0.26884195]
[1737912722759,1.20727374,684.29,683.05,1.3621307]
[1737912722953,1.20727374,684.29,683.06,0.26884195]
[1737912725961,1.20727374,684.29,683.15,1.09328875]
[1737912726260,1.20727374,684.29,683.16,0.26883814]
[1737912727758,1.20727374,684.29,683.17,0.26883887]
[1737912727954,1.20727374,684.29,683.12,1.09328875]
[1737912728158,1.20727374,684.29,683.13,0.26883887]
[1737912729357,1.20727374,684.29,683.12,1.09328875]
[1737912729558,1.20727374,684.29,683.13,0.26883867]
[1737912731864,1.20727374,684.29,683.12,1.09328875]
[1737912734465,1.20727374,684.29,683.03,1.09328875]
[1737912734967,1.20727374,684.29,683.04,0.26883685]
[1737912736970,1.20727374,684.29,683.03,1.09328875]
[1737912737464,1.20727374,684.29,683.04,0.26883799]
[1737912737867,1.20727374,684.29,683.05,1.09328875]
[1737912741070,1.20727374,684.29,683.07,1.09328875]
[1737912742070,1.20727374,684.29,683.08,0.26883659]
[1737912742570,1.20727374,684.29,683.07,1.09328875]
[1737912742767,1.20727374,684.29,683.08,0.26883561]
[1737912744070,1.20727374,684.29,683.17,1.09328875]
[1737912747073,1.20727374,684.29,683.18,1.09328875]
[1737912749670,1.20727374,684.29,682.83,1.85403796]
[1737912749671,1.20727374,684.29,683.15,1.09328875]
[1737912753676,1.20727374,684.29,683.14,1.09328875]
[1737912755678,1.20727374,684.29,683.15,0.26883519]
[1737912756677,1.20727374,684.29,683.17,1.09328875]
[1737912756879,1.20727374,684.29,683.18,0.26883519]
[1737912758580,1.20727374,684.29,683.24,1.09328875]
[1737912760977,1.20727374,684.29,683.25,0.26882872]
[1737912761784,1.20727374,684.29,683.28,1.09328875]
[1737912765785,1.20727374,684.29,683.26,1.09328875]
[1737912773285,1.20727374,684.29,683.24,1.09328875]
[1737912775888,1.20727374,684.29,683.26,1.09328875]
[1737912782496,2.30161543,684.29,683.3,1.09328875]
[1737912786102,2.30161543,684.29,683.25,1.09328875]
[1737912786301,1.20727374,684.29,683.25,1.09328875]
[1737912786602,1.20727374,684.29,683.26,0.26879952]
[1737912789004,1.20727374,684.29,683.25,1.09328875]
[1737912789803,1.20727374,684.29,683.3,1.09328875]
[1737912792606,1.20727374,684.29,683.31,0.26878645]
[1737912792801,1.20727374,684.29,683.25,0.26878645]
[1737912793007,1.20727374,684.29,683.26,0.26878709]
[1737912793201,1.20727374,684.29,683.25,0.26878709]
[1737912793403,1.20727374,684.29,683.26,0.26878709]
[1737912793603,1.20727374,684.29,683.25,0.26878709]
[1737912793804,1.20727374,684.29,683.26,0.26878709]
[1737912794006,1.20727374,684.29,683.27,0.26878709]
[1737912794206,1.20727374,684.29,683.25,0.26878709]
[1737912794509,1.20727374,684.29,683.24,1.09328875]
[1737912794805,1.20727374,684.29,683.25,0.26879199]
[1737912795815,1.20727374,684.29,683.27,1.09328875]
[1737912796012,1.20727374,684.29,683.28,0.26879199]
[1737912796408,1.20727374,684.29,683.27,1.09328875]
[1737912796614,1.20727374,684.29,683.28,0.26879273]
[1737912798613,1.20727374,684.29,683.29,0.26879273]
[1737912798815,1.20727374,684.29,683.26,0.26879273]
[1737912799009,1.20727374,684.29,683.27,0.26879273]
[1737912799212,1.20727374,684.29,683.26,0.26879273]
[1737912799412,1.20727374,684.29,683.27,0.26879273]
[1737912799614,1.20727374,684.29,683.26,0.26879273]
[1737912799914,1.20727374,684.29,683.27,0.26879273]
[1737912800114,1.20727374,684.29,683.26,0.26879273]
[1737912800314,1.20727374,684.29,683.28,0.26879273]
[1737912800510,1.20727374,684.29,683.29,1.09328875]
[1737912800713,1.20727374,684.29,683.3,0.26879273]
[1737912802416,1.20727374,684.29,683.29,1.09328875]
[1737912803419,1.20727374,684.29,683.26,1.09328875]
[1737912806517,1.20727374,684.29,683.27,0.26874217]
[1737912806719,1.20727374,684.29,683.26,1.09328875]
[1737912806917,1.20727374,684.29,683.21,1.09328875]
[1737912807121,1.20727374,684.29,683.22,0.2687209]
[1737912807822,1.20727374,684.29,683.21,1.09328875]
[1737912808020,1.20727374,684.29,683.22,0.26871804]
[1737912808923,1.20727374,684.29,683.21,1.09328875]
[1737912809126,1.20727374,684.29,683.22,0.26872785]
[1737912809424,0.915,684.29,683.22,0.26872785]
[1737912809826,0.915,684.29,683.23,0.29272719]
[1737912810026,0.915,684.29,683.24,0.26872785]
[1737912812430,0.915,684.29,683.23,0.29272719]
[1737912814424,0.915,684.29,683.24,0.26872886]
[1737912817030,0.915,684.29,683.25,0.26872741]
[1737912817230,0.915,684.29,683.23,0.29272719]
[1737912817231,0.915,684.29,683.26,0.26872741]
[1737912817433,0.915,684.29,683.27,0.26872741]
[1737912817632,0.915,684.29,683.28,0.26872741]
[1737912817831,0.915,684.29,683.29,0.26872741]
[1737912818027,0.915,684.29,683.24,0.26872741]
[1737912819734,0.915,684.29,683.25,0.2687252]
[1737912819936,0.915,684.29,683.24,0.2687252]
[1737912820136,0.915,684.29,683.25,0.2687252]
[1737912820337,0.915,684.29,683.24,0.2687252]
[1737912820534,0.915,684.29,683.25,0.2687252]
[1737912820734,0.915,684.29,683.24,0.2687252]
[1737912820932,0.915,684.29,683.25,0.2687252]
[1737912821136,0.915,684.29,683.23,0.29272719]
[1737912821137,0.915,684.29,683.24,0.2687252]
[1737912821336,0.915,684.29,683.25,0.2687252]
[1737912821535,0.915,684.29,683.24,0.2687252]
[1737912836952,0.915,684.29,683.24,1.36201395]
[1737912837156,0.915,684.29,683.25,0.2687252]
[1737912837456,0.915,684.29,683.24,1.09328875]
[1737912837657,0.915,684.29,683.25,0.26871186]
[1737912838357,0.915,684.29,683.26,0.26871102]
[1737912838557,0.915,684.29,683.27,0.26871102]
[1737912838753,0.915,684.29,683.25,0.26871102]
[1737912838955,0.915,684.29,683.26,0.26871102]
[1737912839156,0.915,684.29,683.25,0.26871102]
[1737912839357,0.915,684.29,683.26,0.26871102]
[1737912839557,0.915,684.29,683.3,1.09328875]
[1737912839753,0.915,684.29,683.31,0.26871102]
[1737912842960,0.915,684.29,683.37,1.09328875]
[1737912843159,0.915,684.29,683.38,0.26871102]
[1737912846163,0.915,684.29,683.49,1.09328875]
[1737912849864,0.915,684.29,683.43,1.09328875]
[1737912853765,0.915,684.29,683.4,1.09328875]
[1737912856566,0.915,684.29,683.41,1.09328875]
[1737912858869,0.915,684.29,683.43,1.09328875]
[1737912860972,0.915,684.29,683.41,1.09328875]
[1737912862173,0.915,684.29,683.42,0.26870882]
[1737912862373,0.915,684.29,683.41,1.09328875]
[1737912863370,0.915,684.29,683.42,0.26871123]
[1737912864676,0.915,684.29,683.45,1.09328875]
[1737912865768,0.915,684.29,683.46,0.26871123]
[1737912866575,0.915,684.29,683.47,0.26869572]
[1737912866873,0.915,684.29,683.45,1.09328875]
[1737912867073,0.915,684.29,683.46,0.26869129]
[1737912868075,0.915,684.29,683.5,1.09328875]
[1737912869580,0.915,684.29,683.51,0.26868974]
[1737912871972,0.915,684.29,683.55,1.09328875]
[1737912875780,0.915,684.29,683.49,1.09328875]
[1737912875985,0.915,684.29,683.5,0.26867368]
[1737912876677,0.915,684.29,683.49,1.09328875]
[1737912876880,0.915,684.29,683.5,0.26867465]
[1737912877582,0.915,684.29,683.49,1.09328875]
[1737912882090,0.915,684.29,683.45,1.09328875]
[1737912882285,0.915,684.29,683.46,0.26867787]
[1737912885494,0.915,684.29,683.48,1.09328875]
[1737912885794,0.915,684.29,683.49,0.26867787]
[1737912887693,0.915,684.29,683.5,0.26867299]
[1737912887892,0.915,684.29,683.51,0.26867299]
[1737912888195,0.915,684.29,683.48,1.09328875]
[1737912888196,0.915,684.29,683.52,0.26867299]
[1737912888391,0.915,684.29,683.49,0.26867299]
[1737912888589,0.915,684.29,683.5,0.26867299]
[1737912888789,0.915,684.29,683.49,0.26867299]
[1737912888990,0.915,684.29,683.5,0.26867299]
[1737912889288,0.915,684.29,683.51,0.26867299]
[1737912889492,0.915,684.29,683.49,1.09328875]
[1737912889687,0.915,684.29,683.52,0.2686737]
[1737912889892,0.915,684.29,683.53,0.2686737]
[1737912890093,0.915,684.29,683.5,0.2686737]
[1737912890293,0.915,684.29,683.49,1.09328875]
[1737912892895,0.915,684.29,683.4,1.09328875]
[1737912896499,0.915,684.29,683.41,0.26867961]
[1737912897096,0.915,684.29,683.4,1.09328875]
[1737912899501,0.915,684.29,683.23,0.29272719]
[1737912899502,0.915,684.29,683.44,1.09328875]
[1737912900096,0.915,684.29,683.45,0.26868346]
[1737912901699,0.915,684.29,683.44,1.09328875]
[1737912902003,0.915,684.29,683.55,1.09328875]
[1737912910406,0.915,684.29,683.57,1.09328875]
[1737912916216,0.915,684.29,683.58,0.26862775]
[1737912916410,0.915,684.29,683.57,1.09328875]
[1737912919517,0.915,684.29,683.58,0.26862989]
[1737912922620,0.915,684.29,683.62,1.09328875]
[1737912922818,0.915,684.29,683.63,0.26862989]
[1737912927721,0.915,684.29,683.64,0.26862989]
[1737912927915,0.915,684.29,683.57,0.26862989]
[1737912928120,0.915,684.29,683.58,0.26862989]
[1737912928421,0.915,684.29,683.59,0.26862989]
[1737912928616,0.915,684.29,683.57,0.26862989]
[1737912928815,0.915,684.29,683.58,0.26862989]
[1737912929017,0.915,684.29,683.59,0.26863587]
[1737912929217,0.915,684.29,683.6,0.26863587]
[1737912929419,0.915,684.29,683.61,0.26863587]
[1737912929721,0.915,684.29,683.62,0.26863587]
[1737912929921,0.915,684.29,683.63,0.26863587]
[1737912930121,0.915,684.29,683.64,0.26863587]
[1737912930321,0.915,684.29,683.65,0.26863587]
[1737912930522,0.915,684.29,683.59,1.09328875]
[1737912930722,0.915,684.29,683.6,0.26863587]
[1737912935626,0.915,684.29,683.67,1.09328875]
[1737912935822,0.915,684.29,683.68,0.26863587]
[1737912936822,0.915,684.29,683.67,1.09328875]
[1737912937024,0.915,684.29,683.68,0.26863783]
[1737912939229,0.915,684.29,683.69,1.09328875]
[1737912939428,0.915,684.29,683.7,0.26863783]
[1737912939822,0.915,684.29,683.69,1.09328875]
[1737912943330,0.915,684.29,683.57,1.09328875]
[1737912945824,0.915,684.29,683.58,0.26863208]
[1737912946029,0.915,684.29,683.57,1.09328875]
[1737912947629,0.915,684.29,683.58,0.26862154]
[1737912949632,0.915,684.29,683.62,1.09328875]
[1737912949831,0.915,684.29,683.63,0.26861438]
[1737912950632,0.915,684.29,683.64,0.26861387]
[1737912950927,0.915,684.29,683.65,0.26861387]
[1737912951231,0.915,684.29,683.66,0.26861387]
[1737912951633,0.915,684.29,683.63,0.26861387]
[1737912952533,0.915,684.29,683.67,0.26861387]
[1737912952733,0.915,684.29,683.62,1.09328875]
[1737912952930,0.915,684.29,683.69,1.09328875]
[1737912956137,0.915,684.29,683.7,0.26862126]
[1737912957230,0.915,684.29,683.69,1.09328875]
[1737912957435,0.915,684.29,683.7,0.26862578]
[1737912959136,0.915,684.29,683.73,1.09328875]
[1737912959337,0.915,684.29,683.74,0.26862578]
[1737912961232,0.915,684.29,683.73,1.09328875]
[1737912961433,0.915,684.29,683.74,0.2686246]
[1737912965243,0.915,684.29,683.79,1.09328875]
[1737912966042,0.915,684.29,683.8,0.2686246]
[1737912967437,0.915,684.29,683.79,1.09328875]
[1737912967741,0.915,684.29,683.8,0.26861983]
[1737912968136,0.915,684.29,683.79,1.09328875]
[1737912971739,0.915,684.29,683.69,1.09328875]
[1737912974347,0.915,684.29,683.59,1.09328875]
[1737912981552,0.915,684.29,683.48,1.09328875]
[1737912986450,0.915,684.29,683.49,0.26863825]
[1737912987155,0.915,684.29,683.48,1.09328875]
[1737912987556,0.915,684.29,683.49,0.26864285]
[1737912987956,0.915,684.29,683.59,1.09328875]
[1737912992356,0.915,684.29,683.53,1.09328875]
[1737912995658,0.915,684.29,683.49,1.09328875]
[1737912997155,0.915,684.29,683.5,0.26869242]
[1737912997962,0.915,684.29,683.51,0.26868949]
[1737912998166,0.915,684.29,683.52,0.26868949]
[1737912998367,0.915,684.29,683.5,0.26868949]
[1737912999267,0.915,684.29,683.51,0.26868949]
[1737912999463,0.915,684.29,683.48,0.26868949]
[1737912999667,0.915,684.29,683.49,0.26868949]
[1737912999869,0.915,684.29,683.5,0.26868949]
[1737913000166,0.915,684.29,683.51,0.26868949]
[1737913000374,0.915,684.29,683.52,0.26868949]
[1737913000570,0.915,684.29,683.48,0.26868949]
[1737913006074,0.915,684.29,683.51,1.09328875]
[1737913006270,0.915,684.29,683.52,0.26868949]
[1737913006471,0.915,684.29,683.51,1.09328875]
[1737913006672,0.915,684.29,683.52,0.26868022]
[1737913009375,0.915,684.29,683.53,0.26868022]
[1737913009575,0.915,684.29,683.54,0.26868022]
[1737913009776,0.915,684.29,683.47,0.26868022]
[1737913010077,0.915,684.29,683.48,0.2686782]
[1737913010276,0.915,684.29,683.47,0.2686782]
[1737913010677,0.915,684.29,683.48,0.26866903]
[1737913010871,0.915,684.29,683.49,0.26866903]
[1737913011072,0.915,684.29,683.47,0.26866903]
[1737913011278,0.915,684.29,683.48,0.26866903]
[1737913011577,0.915,684.29,683.49,0.26866903]
[1737913011975,0.915,684.29,683.47,0.26866903]
[1737913012980,0.915,684.29,683.48,1.09328875]
[1737913013280,0.915,684.29,683.49,0.26866903]
[1737913014080,0.915,684.29,683.48,1.09328875]
[1737913014274,0.915,684.29,683.49,0.26867383]
[1737913016081,0.915,684.29,683.5,0.2686739]
[1737913016275,0.915,684.29,683.46,0.2686739]
[1737913016479,0.915,684.29,683.47,0.2686739]
[1737913016776,0.915,684.29,683.46,0.2686739]
[1737913016980,0.915,684.29,683.47,0.2686739]
[1737913017177,0.915,684.29,683.48,0.2686739]
[1737913017381,0.915,684.29,683.49,0.2686739]
[1737913017582,0.915,684.29,683.46,0.2686739]
[1737913017775,0.915,684.29,683.47,0.2686739]
[1737913017975,0.915,684.29,683.46,0.2686739]
[1737913018173,0.915,684.29,683.47,0.2686739]
[1737913018375,0.915,684.29,683.46,0.2686739]
[1737913018578,0.915,684.29,683.47,0.2686739]
[1737913018779,0.915,684.29,683.46,0.2686739]
[1737913019175,0.915,684.29,683.49,1.09328875]
[1737913019578,0.915,684.29,683.5,0.2686739]
[1737913022678,0.915,684.29,683.51,0.26867262]
[1737913022883,0.915,684.29,683.52,1.09328875]
[1737913023087,0.915,684.29,683.53,0.26867262]
[1737913025279,0.915,684.29,683.58,1.09328875]
[1737913034590,0.915,684.29,683.59,1.09328875]
[1737913037192,0.915,684.29,683.39,1.09328875]
[1737913037693,0.915,684.29,683.39,1.3859474]
[1737913040194,0.915,684.29,683.39,0.29265865]
[1737913045095,0.915,684.29,683.4,0.26865707]
[1737913050210,0.915,684.29,683.49,1.09328875]
[1737913050407,0.915,684.29,683.5,0.26865707]
[1737913052511,0.915,684.29,683.51,0.26864501]
[1737913052910,0.915,684.29,683.52,0.26864501]
[1737913053212,0.915,684.29,683.5,0.26864501]
[1737913053411,0.915,684.29,683.53,0.26864501]
[1737913053613,0.915,684.29,683.54,0.26864501]
[1737913053908,0.915,684.29,683.58,1.09328875]
[1737913057416,0.915,684.29,683.56,1.09328875]
[1737913060618,0.915,684.29,683.39,0.29265865]
[1737913065319,0.915,684.29,683.4,0.26863522]
[1737913065521,0.915,684.29,683.41,0.29265009]
[1737913065720,0.915,684.29,683.42,0.26863522]
[1737913065920,0.915,684.29,683.42,0.56128103]
[1737913066120,0.915,684.29,683.43,0.26863522]
[1737913068420,0.915,684.29,683.42,0.29264581]
[1737913068618,0.915,684.29,683.43,0.26863699]
[1737913070122,0.915,684.29,683.42,0.29264581]
[1737913070321,0.915,684.29,683.43,0.26863635]
[1737913070724,0.915,684.29,683.66,1.09328875]
[1737913071022,0.915,684.29,683.67,0.26863794]
[1737913072118,0.915,684.29,683.66,1.09328875]
[1737913074324,0.915,684.29,683.68,1.09328875]
[1737913077328,0.915,684.29,683.66,1.09328875]